fUSD/lending_fUSD_20241121
["ID","MTS","AMOUNT","RATE_DAILY","PERIOD"]
[342915301,1732204232789,-150.0,0.00034607,2]
[342915302,1732204232799,-2000.0,0.00035099,2]
[342915303,1732204232808,-3301.6885939,0.00035135,15]
[342915304,1732204232817,-150.0,0.00035213,2]
[342915305,1732204232827,-250.0,0.00035213,2]
[342915306,1732204232836,-250.0,0.00035335,2]
[342915307,1732204232846,-150.0,0.00035472,2]
[342915308,1732204232855,-1000.0,0.00035798,2]
[342915309,1732204232865,-200.0,0.00035912,2]
[342915310,1732204232880,-942.49,0.00035988,2]
[342915311,1732204232890,-1211.09682993,0.00036174,120]
[342915312,1732204232899,-249.39087428,0.00036174,120]
[342915313,1732204232908,-1500.0,0.00036174,120]
[342915314,1732204232918,-150.0,0.00036176,4]
[342915315,1732204232927,-150.0,0.00036337,2]
[342915316,1732204232936,-3301.68859385,0.00036553,15]
[342915317,1732204232946,-742.11,0.00036632,10]
[342915318,1732204232956,-2662.78381456,0.00036642,15]
[342915319,1732204232966,-618.43,0.00036929,10]
[342915320,1732204232976,-165.42,0.00036939,2]
[342915321,1732204232986,-1000.0,0.00037075,2]
[342915322,1732204232997,-179.58,0.00037146,2]
[342915323,1732204233007,-150.0,0.00037203,2]
[342915324,1732204233017,-173.0,0.00037585,2]
[342915325,1732204233027,-3301.68859385,0.00037972,15]
[342915326,1732204233038,-2662.78381456,0.00038049,15]
[342915327,1732204233048,-150.0,0.00038068,2]
[342915328,1732204233058,-942.49,0.00038252,2]
[342915329,1732204233068,-150.27,0.00038321,2]
[342915330,1732204233078,-515.36,0.00038346,10]
[342915331,1732204233088,-1000.0,0.00038352,2]
[342915332,1732204233098,-500.0,0.00038356,11]
[342915333,1732204233111,-567.36,0.00038356,11]
[342915334,1732204233127,-500.0,0.00038356,11]
[342915335,1732204233137,-500.0,0.00038356,11]
[342915336,1732204233148,-500.0,0.00038356,11]
[342915337,1732204233158,-500.0,0.00038356,11]
[342915338,1732204233169,-500.0,0.00038356,11]
[342915339,1732204233179,-500.0,0.00038356,11]
[342915340,1732204233190,-500.0,0.00038356,11]
[342915341,1732204233200,-500.0,0.00038356,11]
[342915342,1732204233210,-500.0,0.00038356,11]
[342915343,1732204233220,-500.0,0.00038356,11]
[342915344,1732204233230,-500.0,0.00038356,11]
[342915345,1732204233240,-500.0,0.00038356,11]
[342915346,1732204233250,-500.0,0.00038356,11]
[342915347,1732204233260,-500.0,0.00038356,11]
[342915348,1732204233270,-500.0,0.00038356,11]
[342915349,1732204233281,-500.0,0.00038356,11]
[342915350,1732204233290,-500.0,0.00038356,11]
[342915351,1732204233300,-500.0,0.00038356,11]
[342915352,1732204233309,-500.0,0.00038356,11]
[342915353,1732204233318,-635.4,0.00038356,11]
[342915354,1732204233328,-500.0,0.00038356,11]
[342915355,1732204233338,-500.0,0.00038356,11]
[342915356,1732204233638,-500.0,0.00038356,11]
[342915357,1732204233649,-500.0,0.00038356,11]
[342915358,1732204233658,-500.0,0.00038356,11]
[342915359,1732204233668,-500.0,0.00038356,11]
[342915360,1732204233678,-629.21,0.00038356,11]
[342915361,1732204233688,-500.0,0.00038356,11]
[342915362,1732204233697,-500.0,0.00038356,11]
[342915363,1732204233707,-500.0,0.00038356,11]
[342915364,1732204233717,-500.0,0.00038356,11]
[342915365,1732204233727,-500.0,0.00038356,11]
[342915366,1732204233736,-726.04,0.00038356,11]
[342915367,1732204233746,-525.81537518,0.00038356,11]
[342915368,1732204233756,-500.0,0.00038356,11]
[342915369,1732204233765,-500.0,0.00038356,11]
[342915370,1732204233775,-500.0,0.00038356,11]
[342915371,1732204233785,-500.0,0.00038356,11]
[342915372,1732204233795,-500.0,0.00038356,11]
[342915373,1732204233804,-500.0,0.00038356,11]
[342915374,1732204233814,-810.27,0.00038356,11]
[342915375,1732204233823,-500.0,0.00038356,11]
[342915376,1732204233834,-500.0,0.00038356,11]
[342915377,1732204233843,-500.0,0.00038356,11]
[342915378,1732204233853,-500.0,0.00038356,11]
[342915379,1732204233862,-524.02,0.00038356,11]
[342915380,1732204233877,-857.98,0.00038356,11]
[342915381,1732204233893,-500.0,0.00038356,11]
[342915382,1732204233903,-500.0,0.00038356,11]
[342915383,1732204233912,-500.0,0.00038356,11]
[342915384,1732204233922,-594.22,0.00038356,11]
[342915385,1732204233932,-500.0,0.00038356,11]
[342915386,1732204233942,-500.0,0.00038356,11]
[342915387,1732204233952,-500.0,0.00038356,11]
[342915388,1732204233961,-500.0,0.00038356,11]
[342915389,1732204233971,-952.08,0.00038356,11]
[342915390,1732204233980,-796.66,0.00038356,11]
[342915391,1732204233990,-500.0,0.00038356,11]
[342915392,1732204234000,-500.0,0.00038356,11]
[342915393,1732204234009,-500.0,0.00038356,11]
[342915394,1732204234020,-913.27,0.00038356,11]
[342915395,1732204234029,-500.0,0.00038356,11]
[342915396,1732204234044,-500.0,0.00038356,11]
[342915397,1732204234053,-500.0,0.00038356,11]
[342915398,1732204234063,-500.0,0.00038356,11]
[342915399,1732204234073,-500.0,0.00038356,11]
[342915400,1732204234083,-500.0,0.00038356,11]
[342915401,1732204234092,-500.0,0.00038356,11]
[342915402,1732204234105,-500.0,0.00038356,11]
[342915403,1732204234115,-549.48,0.00038356,11]
[342915404,1732204234124,-696.29,0.00038356,11]
[342915405,1732204234134,-500.0,0.00038356,11]
[342915406,1732204234146,-500.0,0.00038356,11]
[342915407,1732204234157,-500.0,0.00038356,11]
[342915408,1732204234167,-683.63,0.00038356,11]
[342915409,1732204234177,-725.57,0.00038356,11]
[342915410,1732204234187,-514.9,0.00038356,11]
[342915411,1732204234198,-500.0,0.00038356,11]
[342915412,1732204234208,-500.0,0.00038356,11]
[342915413,1732204234218,-500.0,0.00038356,11]
[342915414,1732204234229,-1188.15,0.00038356,11]
[342915415,1732204234239,-500.0,0.00038356,7]
[342915416,1732204234250,-500.0,0.00038356,11]
[342915417,1732204234260,-500.0,0.00038356,11]
[342915418,1732204234271,-500.0,0.00038356,11]
[342915419,1732204234281,-500.0,0.00038356,11]
[342915420,1732204234291,-500.0,0.00038356,11]
[342915421,1732204234301,-453.1162586,0.00038356,11]
[342915422,1732204234312,-578.77,0.00038356,11]
[342915423,1732204234322,-500.0,0.00038356,11]
[342915424,1732204234331,-500.0,0.00038356,11]
[342915425,1732204234341,-500.0,0.00038356,11]
[342915426,1732204234351,-596.04,0.00038356,11]
[342915427,1732204234360,-500.0,0.00038356,11]
[342915428,1732204234371,-500.0,0.00038356,11]
[342915429,1732204234393,-501.52,0.00038356,11]
[342915430,1732204234403,-1592.31,0.00038356,11]
[342915431,1732204234413,-500.0,0.00038356,11]
[342915432,1732204234423,-500.0,0.00038356,11]
[342915433,1732204234434,-585.43,0.00038356,11]
[342915434,1732204234444,-500.0,0.00038356,11]
[342915435,1732204234454,-788.71,0.00038356,11]
[342915436,1732204234464,-500.0,0.00038356,11]
[342915437,1732204234474,-500.0,0.00038356,11]
[342915438,1732204234485,-500.0,0.00038356,11]
[342915439,1732204234496,-500.0,0.00038356,11]
[342915440,1732204234506,-500.0,0.00038356,11]
[342915441,1732204234516,-500.0,0.00038356,11]
[342915442,1732204234526,-500.0,0.00038356,11]
[342915443,1732204234536,-500.0,0.00038356,11]
[342915444,1732204234546,-500.0,0.00038356,11]
[342915445,1732204234557,-570.76,0.00038356,11]
[342915446,1732204234567,-500.0,0.00038356,11]
[342915447,1732204234577,-500.0,0.00038356,11]
[342915448,1732204234587,-500.0,0.00038356,11]
[342915449,1732204234596,-500.0,0.00038356,11]
[342915450,1732204234606,-869.92,0.00038356,11]
[342915451,1732204234616,-500.0,0.00038356,11]
[342915452,1732204234630,-605.74,0.00038356,11]
[342915453,1732204234640,-514.62,0.00038356,11]
[342915454,1732204234651,-500.0,0.00038356,11]
[342915455,1732204234660,-903.28,0.00038356,11]
[342915456,1732204234670,-500.0,0.00038356,11]
[342915457,1732204234680,-500.0,0.00038356,11]
[342915458,1732204234690,-500.0,0.00038356,11]
[342915459,1732204234699,-500.0,0.00038356,11]
[342915460,1732204234709,-500.0,0.00038356,11]
[342915461,1732204234720,-500.0,0.00038356,11]
[342915462,1732204234733,-568.99798865,0.00038356,11]
[342915463,1732204234744,-500.0,0.00038356,11]
[342915464,1732204234755,-500.0,0.00038356,11]
[342915465,1732204234766,-500.0,0.00038356,11]
[342915466,1732204234777,-500.0,0.00038356,11]
[342915467,1732204234787,-300.0,0.00038356,11]
[342915468,1732204234798,-500.0,0.00038356,11]
[342915469,1732204234808,-162.58608829,0.00038356,11]
[342915470,1732204234818,-500.0,0.00038356,11]
[342915471,1732204234829,-279.84690585,0.00038356,11]
[342915472,1732204234839,-500.0,0.00038356,11]
[342915473,1732204234849,-500.0,0.00038356,11]
[342915474,1732204234859,-500.0,0.00038356,11]
[342915475,1732204234870,-500.0,0.00038356,11]
[342915476,1732204234884,-856.81,0.00038356,11]
[342915477,1732204234894,-500.0,0.00038356,11]
[342915478,1732204234904,-500.0,0.00038356,11]
[342915479,1732204234914,-578.58,0.00038356,11]
[342915480,1732204234924,-500.0,0.00038356,11]
[342915481,1732204234934,-500.0,0.00038356,11]
[342915482,1732204234945,-500.0,0.00038356,11]
[342915483,1732204234955,-500.0,0.00038356,11]
[342915484,1732204234965,-658.66,0.00038356,11]
[342915485,1732204234975,-1413.85,0.00038356,11]
[342915486,1732204234986,-500.0,0.00038356,11]
[342915487,1732204234996,-500.0,0.00038356,11]
[342915488,1732204235006,-500.0,0.00038356,11]
[342915489,1732204235016,-500.0,0.00038356,11]
[342915490,1732204235026,-500.0,0.00038356,11]
[342915491,1732204235037,-1062.88,0.00038356,11]
[342915492,1732204235047,-500.0,0.00038356,11]
[342915493,1732204235057,-726.84,0.00038356,11]
[342915494,1732204235067,-500.0,0.00038356,11]
[342915495,1732204235077,-500.0,0.00038356,11]
[342915496,1732204235088,-623.27,0.00038356,11]
[342915497,1732204235098,-500.0,0.00038356,11]
[342915498,1732204235112,-903.26,0.00038356,11]
[342915499,1732204235136,-500.0,0.00038356,11]
[342915500,1732204235154,-1214.4,0.00038356,11]
[342915501,1732204235175,-500.0,0.00038356,11]
[342915502,1732204235190,-500.0,0.00038356,11]
[342915503,1732204235201,-500.0,0.00038356,11]
[342915504,1732204235214,-1747.29,0.00038356,11]
[342915505,1732204235225,-500.0,0.00038356,11]
[342915506,1732204235235,-500.0,0.00038356,11]
[342915507,1732204235245,-530.21,0.00038356,11]
[342915508,1732204235255,-500.0,0.00038356,11]
[342915509,1732204235265,-500.0,0.00038356,11]
[342915510,1732204235276,-500.0,0.00038356,11]
[342915511,1732204235286,-500.0,0.00038356,11]
[342915512,1732204235296,-11365.11,0.00038356,11]
[342915513,1732204235306,-500.0,0.00038356,11]
[342915514,1732204235315,-500.0,0.00038356,11]
[342915515,1732204235324,-532.3325491,0.00038356,11]
[342915516,1732204235335,-500.0,0.00038356,11]
[342915517,1732204235344,-167.23637625,0.0003853,2]
[342915518,1732204235354,-764.59,0.00038628,11]
[342915519,1732204235364,-955.73,0.00038628,11]
[342915520,1732204235379,-500.0,0.00038629,11]
[342915521,1732204235388,-532.48,0.00038629,11]
[342915522,1732204235398,-650.76,0.00038629,11]
[342915523,1732204235407,-500.0,0.00038629,11]
[342915524,1732204235417,-500.0,0.00038629,11]
[342915525,1732204235427,-1063.94,0.00038629,11]
[342915526,1732204235437,-640.18,0.00038629,11]
[342915527,1732204235448,-500.0,0.00038629,11]
[342915528,1732204235458,-500.0,0.00038629,11]
[342915529,1732204235467,-500.0,0.00038629,11]
[342915530,1732204235478,-500.0,0.00038629,11]
[342915531,1732204235488,-500.0,0.00038629,11]
[342915532,1732204235497,-500.0,0.00038629,11]
[342915533,1732204235507,-500.0,0.00038629,11]
[342915534,1732204235517,-500.0,0.00038629,11]
[342915535,1732204235526,-500.0,0.00038629,11]
[342915536,1732204235535,-502.31,0.00038629,11]
[342915537,1732204235546,-500.0,0.00038629,11]
[342915538,1732204235555,-500.0,0.00038629,11]
[342915539,1732204235566,-500.0,0.00038629,11]
[342915540,1732204235575,-500.0,0.00038629,11]
[342915541,1732204235585,-500.0,0.00038629,11]
[342915542,1732204235595,-500.0,0.00038629,11]
[342915543,1732204235604,-500.0,0.00038629,11]
[342915544,1732204235616,-500.0,0.00038629,11]
[342915545,1732204235628,-500.0,0.00038629,11]
[342915546,1732204235637,-1528.23,0.00038629,11]
[342915547,1732204235647,-500.0,0.00038629,11]
[342915548,1732204235657,-500.0,0.00038629,11]
[342915549,1732204235667,-500.0,0.00038629,11]
[342915550,1732204235678,-503.38,0.00038629,11]
[342915551,1732204235688,-500.0,0.00038629,11]
[342915552,1732204235697,-617.69,0.00038629,11]
[342915553,1732204235707,-500.0,0.00038629,11]
[342915554,1732204235717,-500.0,0.00038629,11]
[342915555,1732204235727,-500.0,0.00038629,11]
[342915556,1732204235737,-500.0,0.00038629,11]
[342915557,1732204235748,-500.0,0.00038629,11]
[342915558,1732204235758,-500.0,0.00038629,11]
[342915559,1732204235768,-337.39388126,0.00038629,11]
[342915560,1732204235779,-615.56,0.00038629,11]
[342915561,1732204235788,-500.0,0.00038629,11]
[342915562,1732204235797,-500.0,0.00038629,11]
[342915563,1732204235807,-500.0,0.00038629,11]
[342915564,1732204235817,-500.0,0.00038629,11]
[342915565,1732204235826,-500.0,0.00038629,11]
[342915566,1732204235835,-500.0,0.00038629,11]
[342915567,1732204235844,-852.4,0.00038629,11]
[342915568,1732204235854,-500.0,0.00038629,11]
[342915569,1732204235863,-1196.41,0.00038629,11]
[342915570,1732204235876,-500.0,0.00038629,11]
[342915571,1732204235886,-500.0,0.00038629,11]
[342915572,1732204235895,-500.0,0.00038629,11]
[342915573,1732204235905,-500.0,0.00038629,11]
[342915574,1732204235915,-3542.25,0.00038629,11]
[342915575,1732204235925,-500.0,0.00038629,11]
[342915576,1732204235935,-500.0,0.00038629,11]
[342915577,1732204235944,-500.0,0.00038629,11]
[342915578,1732204235955,-2500.26,0.00038629,11]
[342915579,1732204235964,-500.0,0.00038629,11]
[342915580,1732204235974,-500.0,0.00038629,11]
[342915581,1732204235983,-500.0,0.00038629,11]
[342915582,1732204235993,-456.94748151,0.00038629,11]
[342915583,1732204236004,-500.0,0.00038629,11]
[342915584,1732204236014,-500.0,0.00038629,11]
[342915585,1732204236024,-686.36,0.00038629,11]
[342915586,1732204236033,-500.0,0.00038629,11]
[342915587,1732204236043,-500.0,0.00038629,11]
[342915588,1732204236054,-3668.1,0.00038629,11]
[342915589,1732204236063,-500.0,0.00038629,11]
[342915590,1732204236073,-500.0,0.00038629,11]
[342915591,1732204236083,-500.0,0.00038629,11]
[342915592,1732204236092,-500.0,0.00038629,11]
[342915593,1732204236104,-665.4,0.00038629,11]
[342915594,1732204236114,-500.0,0.00038629,11]
[342915595,1732204236125,-500.0,0.00038629,11]
[342915596,1732204236135,-500.0,0.00038629,11]
[342915597,1732204236145,-500.0,0.00038629,11]
[342915598,1732204236154,-645.67813517,0.00038629,11]
[342915599,1732204236163,-500.0,0.00038629,11]
[342915600,1732204236173,-500.0,0.00038629,11]
[342915601,1732204236184,-265.83277526,0.00038629,11]
[342915602,1732204236194,-500.0,0.00038629,11]
[342915603,1732204236204,-500.0,0.00038629,11]
[342915604,1732204236214,-500.0,0.00038629,11]
[342915605,1732204236289,-500.0,0.0003863,11]
[342915606,1732204236301,-567.36,0.0003863,11]
[342915607,1732204236310,-500.0,0.0003863,11]
[342915608,1732204236319,-500.0,0.0003863,11]
[342915609,1732204236327,-500.0,0.0003863,11]
[342915610,1732204236336,-500.0,0.0003863,11]
[342915611,1732204236345,-500.0,0.0003863,11]
[342915612,1732204236355,-500.0,0.0003863,11]
[342915613,1732204236364,-500.0,0.0003863,11]
[342915614,1732204236376,-500.0,0.0003863,11]
[342915615,1732204236385,-500.0,0.0003863,11]
[342915616,1732204236394,-500.0,0.0003863,11]
[342915617,1732204236404,-500.0,0.0003863,11]
[342915618,1732204236413,-500.0,0.0003863,11]
[342915619,1732204236422,-500.0,0.0003863,11]
[342915620,1732204236432,-500.0,0.0003863,11]
[342915621,1732204236441,-635.4,0.0003863,11]
[342915622,1732204236450,-500.0,0.0003863,11]
[342915623,1732204236460,-500.0,0.0003863,11]
[342915624,1732204236470,-500.0,0.0003863,11]
[342915625,1732204236480,-500.0,0.0003863,11]
[342915626,1732204236489,-500.0,0.0003863,11]
[342915627,1732204236498,-500.0,0.0003863,11]
[342915628,1732204236508,-629.21,0.0003863,11]
[342915629,1732204236517,-500.0,0.0003863,11]
[342915630,1732204236527,-500.0,0.0003863,11]
[342915631,1732204236536,-500.0,0.0003863,11]
[342915632,1732204236545,-500.0,0.0003863,11]
[342915633,1732204236555,-500.0,0.0003863,11]
[342915634,1732204236565,-726.04,0.0003863,11]
[342915635,1732204236575,-500.0,0.0003863,11]
[342915636,1732204236584,-500.0,0.0003863,11]
[342915637,1732204236594,-500.0,0.0003863,11]
[342915638,1732204236603,-500.0,0.0003863,11]
[342915639,1732204236615,-500.0,0.0003863,11]
[342915640,1732204236633,-810.27,0.0003863,11]
[342915641,1732204236643,-152.92747428,0.0003863,11]
[342915642,1732204236652,-500.0,0.0003863,11]
[342915643,1732204236662,-524.02,0.0003863,11]
[342915644,1732204236673,-857.98,0.0003863,11]
[342915645,1732204236682,-500.0,0.0003863,11]
[342915646,1732204236691,-500.0,0.0003863,11]
[342915647,1732204236701,-500.0,0.0003863,11]
[342915648,1732204236710,-594.22,0.0003863,11]
[342915649,1732204236720,-500.0,0.0003863,11]
[342915650,1732204236730,-500.0,0.0003863,11]
[342915651,1732204236739,-500.0,0.0003863,11]
[342915652,1732204236749,-416.04627208,0.0003863,11]
[342915653,1732204236758,-952.08,0.0003863,11]
[342915654,1732204236767,-796.66,0.0003863,11]
[342915655,1732204236776,-500.0,0.0003863,11]
[342915656,1732204236786,-500.0,0.0003863,11]
[342915657,1732204236795,-500.0,0.0003863,11]
[342915658,1732204236804,-913.27,0.0003863,11]
[342915659,1732204236813,-500.0,0.0003863,11]
[342915660,1732204236822,-500.0,0.0003863,11]
[342915661,1732204236831,-500.0,0.0003863,11]
[342915662,1732204236840,-500.0,0.0003863,11]
[342915663,1732204236850,-500.0,0.0003863,11]
[342915664,1732204236859,-500.0,0.0003863,11]
[342915665,1732204236868,-500.0,0.0003863,11]
[342915666,1732204236881,-500.0,0.0003863,11]
[342915667,1732204236890,-549.48,0.0003863,11]
[342915668,1732204236899,-696.29,0.0003863,11]
[342915669,1732204236909,-500.0,0.0003863,11]
[342915670,1732204236918,-500.0,0.0003863,11]
[342915671,1732204236927,-500.0,0.0003863,11]
[342915672,1732204236937,-683.63,0.0003863,11]
[342915673,1732204236946,-725.57,0.0003863,11]
[342915674,1732204236956,-514.9,0.0003863,11]
[342915675,1732204236966,-288.3038537,0.0003863,11]
[342915676,1732204236975,-500.0,0.0003863,11]
[342915677,1732204236985,-1188.15,0.0003863,11]
[342915678,1732204236994,-500.0,0.0003863,7]
[342915679,1732204237003,-500.0,0.0003863,11]
[342915680,1732204237013,-500.0,0.0003863,11]
[342915681,1732204237022,-500.0,0.0003863,11]
[342915682,1732204237032,-500.0,0.0003863,11]
[342915683,1732204237041,-578.77,0.0003863,11]
[342915684,1732204237051,-600.80967292,0.0003863,11]
[342915685,1732204237060,-500.0,0.0003863,11]
[342915686,1732204237069,-500.0,0.0003863,11]
[342915687,1732204237078,-596.04,0.0003863,11]
[342915688,1732204237088,-500.0,0.0003863,11]
[342915689,1732204237097,-500.0,0.0003863,11]
[342915690,1732204237108,-501.52,0.0003863,11]
[342915691,1732204237118,-1592.31,0.0003863,11]
[342915692,1732204237135,-500.0,0.0003863,11]
[342915693,1732204237144,-500.0,0.0003863,11]
[342915694,1732204237155,-585.43,0.0003863,11]
[342915695,1732204237164,-500.0,0.0003863,11]
[342915696,1732204237173,-788.71,0.0003863,11]
[342915697,1732204237183,-500.0,0.0003863,11]
[342915698,1732204237193,-500.0,0.0003863,11]
[342915699,1732204237202,-500.0,0.0003863,11]
[342915700,1732204237211,-500.0,0.0003863,11]
[342915701,1732204237220,-500.0,0.0003863,11]
[342915702,1732204237229,-402.95542164,0.0003863,11]
[342915703,1732204237238,-500.0,0.0003863,11]
[342915704,1732204237248,-500.0,0.0003863,11]
[342915705,1732204237257,-570.76,0.0003863,11]
[342915706,1732204237266,-500.0,0.0003863,11]
[342915707,1732204237276,-500.0,0.0003863,11]
[342915708,1732204237286,-500.0,0.0003863,11]
[342915709,1732204237295,-869.92,0.0003863,11]
[342915710,1732204237304,-500.0,0.0003863,11]
[342915711,1732204237313,-605.74,0.0003863,11]
[342915712,1732204237322,-514.62,0.0003863,11]
[342915713,1732204237331,-500.0,0.0003863,11]
[342915714,1732204237341,-903.28,0.0003863,11]
[342915715,1732204237350,-500.0,0.0003863,11]
[342915716,1732204237359,-500.0,0.0003863,11]
[342915717,1732204237368,-500.0,0.0003863,11]
[342915718,1732204237382,-500.0,0.0003863,11]
[342915719,1732204237391,-500.0,0.0003863,11]
[342915720,1732204237400,-500.0,0.0003863,11]
[342915721,1732204237410,-500.0,0.0003863,11]
[342915722,1732204237419,-500.0,0.0003863,11]
[342915723,1732204237428,-500.0,0.0003863,11]
[342915724,1732204237438,-300.0,0.0003863,11]
[342915725,1732204237447,-500.0,0.0003863,11]
[342915726,1732204237457,-553.16920977,0.0003863,11]
[342915727,1732204237466,-500.0,0.0003863,11]
[342915728,1732204237476,-500.0,0.0003863,11]
[342915729,1732204237485,-856.81,0.0003863,11]
[342915730,1732204237495,-578.58,0.0003863,11]
[342915731,1732204237505,-500.0,0.0003863,11]
[342915732,1732204237514,-658.66,0.0003863,11]
[342915733,1732204237524,-1413.85,0.0003863,11]
[342915734,1732204237533,-500.0,0.0003863,11]
[342915735,1732204237550,-500.0,0.0003863,11]
[342915736,1732204237563,-618.97570331,0.0003863,11]
[342915737,1732204237573,-500.0,0.0003863,11]
[342915738,1732204237583,-1062.88,0.0003863,11]
[342915739,1732204237592,-500.0,0.0003863,11]
[342915740,1732204237602,-726.84,0.0003863,11]
[342915741,1732204237612,-500.0,0.0003863,11]
[342915742,1732204237621,-623.27,0.0003863,11]
[342915743,1732204237636,-500.0,0.0003863,11]
[342915744,1732204237646,-903.26,0.0003863,11]
[342915745,1732204237656,-499.26812229,0.0003863,11]
[342915746,1732204237665,-1214.4,0.0003863,11]
[342915747,1732204237675,-500.0,0.0003863,11]
[342915748,1732204237684,-500.0,0.0003863,11]
[342915749,1732204237693,-500.0,0.0003863,11]
[342915750,1732204237702,-1747.29,0.0003863,11]
[342915751,1732204237712,-500.0,0.0003863,11]
[342915752,1732204237721,-500.0,0.0003863,11]
[342915753,1732204237731,-530.21,0.0003863,11]
[342915754,1732204237740,-500.0,0.0003863,11]
[342915755,1732204237750,-500.0,0.0003863,11]
[342915756,1732204237759,-500.0,0.0003863,11]
[342915757,1732204237769,-500.0,0.0003863,11]
[342915758,1732204237779,-11365.11,0.0003863,11]
[342915759,1732204237788,-500.0,0.0003863,11]
[342915760,1732204237797,-500.0,0.0003863,11]
[342915761,1732204237807,-500.0,0.0003863,11]
[342915762,1732204237816,-1000.0,0.0003876,2]
[342915763,1732204237825,-382.50601116,0.00038803,11]
[342915764,1732204237834,-764.59,0.00038902,11]
[342915765,1732204237844,-955.73,0.00038902,11]
[342915766,1732204237853,-500.0,0.00038903,11]
[342915767,1732204237862,-532.48,0.00038903,11]
[342915768,1732204237871,-650.76,0.00038903,11]
[342915769,1732204237883,-500.0,0.00038903,11]
[342915770,1732204237893,-500.0,0.00038903,11]
[342915771,1732204237902,-1063.94,0.00038903,11]
[342915772,1732204237911,-640.18,0.00038903,11]
[342915773,1732204237920,-3521.01,0.00038903,11]
[342915774,1732204237929,-500.0,0.00038903,11]
[342915775,1732204237939,-500.0,0.00038903,11]
[342915776,1732204237948,-500.0,0.00038903,11]
[342915777,1732204237957,-500.0,0.00038903,11]
[342915778,1732204237966,-500.0,0.00038903,11]
[342915779,1732204237975,-500.0,0.00038903,11]
[342915780,1732204237984,-461.94887485,0.00038903,11]
[342915781,1732204237993,-280.87,0.00038903,11]
[342915782,1732204238003,-500.0,0.00038903,11]
[342915783,1732204238013,-500.0,0.00038903,11]
[342915784,1732204238023,-500.0,0.00038903,11]
[342915785,1732204238032,-500.0,0.00038903,11]
[342915786,1732204238042,-502.31,0.00038903,11]
[342915787,1732204238051,-500.0,0.00038903,11]
[342915788,1732204238061,-500.0,0.00038903,11]
[342915789,1732204238070,-500.0,0.00038903,11]
[342915790,1732204238080,-500.0,0.00038903,11]
[342915791,1732204238089,-500.0,0.00038903,11]
[342915792,1732204238099,-2162.36,0.00038903,11]
[342915793,1732204238113,-500.0,0.00038903,11]
[342915794,1732204238122,-500.0,0.00038903,11]
[342915795,1732204238134,-500.0,0.00038903,11]
[342915796,1732204238145,-500.0,0.00038903,11]
[342915797,1732204238155,-1528.23,0.00038903,11]
[342915798,1732204238164,-500.0,0.00038903,11]
[342915799,1732204238174,-500.0,0.00038903,11]
[342915800,1732204238184,-500.0,0.00038903,11]